Cogmind - Beta 13 *** ADVENTURER MODE // 2024.05.16 @ 01:54:00 Player: OrcaCora Result: Destroyed by PO-SC4(z) with Makeshift Axe Performance ------------- Evolutions (1) 500 Regions Visited (5) 1000 Robots Destroyed (107) 535 Value Destroyed (2055) 2055 Prototype IDs (7) 140 Alien Tech Used (0) 0 Bonus (680) 680 TOTAL SCORE: 4910 Bonus ------- High Alert Combat Kills 104 Met Imprinter 300 Was Imprinted 300 Friendly Fire -24 Cogmind --------- Core Integrity 0/400 Matter 494/500 Energy 98/100 System Corruption 1% Temperature Cool (0) Movement Rolling (105) Ox1 Location -7/Zion Parts ------- > --- POWER (1) -------- (None) > --- PROPULSION (3) --- Armored Wheel Armored Wheel > --- UTILITY (3) ------ High-capacity Storage Unit High-capacity Matter Pod > --- WEAPON (2) ------- (None) > --- INVENTORY (20) --- Ion Engine Ion Engine Ion Engine Ion Engine Ion Engine Wheel Wheel Compact Wheel Compact Wheel Compact Wheel Compact Wheel Disposable Heat Sink Kinecellerator Assault Rifle Light Assault Rifle Heavy Assault Rifle Heavy Assault Rifle Improved Assault Rifle Mini Grenade Launcher Peak State ------------ > --- POWER ------------ Improved Ion Engine > --- PROPULSION ------- Wheel Compact Wheel Compact Wheel > --- UTILITY ---------- Improved Heat Sink High-capacity Storage Unit Tractor Beam > --- WEAPON ----------- Improved Assault Rifle Light Cannon > --- INVENTORY -------- Ion Engine Ion Engine Ion Engine Ion Engine Ion Engine Wheel Compact Wheel Compact Wheel Compact Wheel Armored Wheel Armored Wheel Armored Wheel Disposable Heat Sink Assault Rifle Assault Rifle Light Assault Rifle [Rating: 16] Favorites ----------- Power Ion Engine Engine Ion Engine Propulsion Armored Wheel Wheel Armored Wheel Utility Tractor Beam Device Tractor Beam Storage High-capacity Storage Unit Weapon Improved Assault Rifle Ballistic Gun Improved Assault Rifle Ballistic Cannon Light Cannon Launcher Grenade Launcher Special Melee Weapon Datajack Build | -11 -10 -10 -9 -9 -7 ------- Run | Yrd Mat Min Mat Min Zio Slots Evolved 2 | . . . 2 . . Power . | . . . . . . Propulsion 1 | . . . 1 . . Utility 1 | . . . 1 . . Weapon . | . . . . . . Parts Attached 55 | 6 11 2 20 14 2 Power 5 | 1 1 . 3 . . Engine 5 | 1 1 . 3 . . Core . | . . . . . . Reactor . | . . . . . . Propulsion 13 | 2 2 . 5 3 1 Treads . | . . . . . . Leg . | . . . . . . Wheel 13 | 2 2 . 5 3 1 Hover . | . . . . . . Flight . | . . . . . . Utility 12 | 1 5 . 4 2 . Device 6 | . 3 . 1 2 . Storage 6 | 1 2 . 3 . . Processor . | . . . . . . Hackware . | . . . . . . Protection . | . . . . . . Artifact . | . . . . . . Weapon 25 | 2 3 2 8 9 1 Energy Gun . | . . . . . . Energy Cannon . | . . . . . . Ballistic Gun 14 | 2 2 . 6 4 . Ballistic Cannon 1 | . . . 1 . . Launcher 9 | . 1 1 1 5 1 Special Weapon . | . . . . . . Impact Weapon . | . . . . . . Slashing Weapon . | . . . . . . Piercing Weapon . | . . . . . . Special Melee Weapon 1 | . . 1 . . . Unidentified Prototypes 1 | . . . 1 . . Parts Lost 16 | . 1 . 6 4 5 Power 2 | . . . 1 1 . Propulsion 7 | . 1 . 2 2 2 Utility 3 | . . . 1 1 1 Weapon 4 | . . . 2 . 2 Highest Loss Streak 5 | . 1 . 2 3 5 To Critical Strikes . | . . . . . . Average Slot Usage (%) 90 | . 97 100 88 84 86 Engine 8 | . 13 14 10 3 . Wheel 30 | . 27 28 30 32 32 Device 10 | . 13 14 10 4 10 Storage 17 | . 13 14 14 22 22 Ballistic Gun 19 | . 26 14 13 19 21 Ballistic Cannon 1 | . . . 5 . . Launcher 2 | . 1 13 2 2 . Naked Turns . | . . . . . . Heaviest Build 90 | 13 31 30 90 56 51 Greatest Support 44 | 26 26 26 44 44 36 Greatest Overweight (x) 4 | 2 1 1 3 4 1 Average Overweight (x) . | . . 1 1 1 1 Largest Inventory Capacity 25 | 8 15 15 25 20 20 Average Capacity 17 | 7 10 15 20 20 20 Most Carried 20 | 2 13 14 19 20 20 Average Carried 14 | . 8 13 14 19 19 Final Capacity 20 | 8 15 15 20 20 20 Final Carried 20 | 2 13 13 19 20 19 Class Distribution -------------------- 91% | Mutant 8% | Scavenger-Mutant Dominant Class ---------------- Mutant | -10/Materials Mutant | -10/Mines Mutant | -9/Materials Mutant | -9/Mines Mutant | -7/Zion Resources | -11 -10 -10 -9 -9 -7 ----------- Run | Yrd Mat Min Mat Min Zio Matter Collected 2487 | 260 332 51 1246 517 81 Remotely 1340 | . 294 51 727 187 81 Salvage Created 3546 | . 742 . 1886 918 . Parts 206 | . 44 . 106 56 . Haulers Intercepted 7 | . 2 . 5 . . Recyclers Shooed 6 | . 2 . 4 . . Parts Field Recycled . | . . . . . . Retrieved Matter . | . . . . . . Parts Self-Destructed 2 | . . . . . 2 Prevented . | . . . . . . Kills | -11 -10 -10 -9 -9 -7 ------- Run | Yrd Mat Min Mat Min Zio Combat Hostiles Destroyed 64 | . 13 . 30 21 . Guns 41 | . 13 . 14 14 . Cannons 15 | . . . 15 . . AOE 8 | . . . 1 7 . Classes Destroyed 14 | . 6 . 5 3 . Worker 16 | . 1 . 8 7 . Builder 1 | . . . 1 . . Tunneler 1 | . . . . 1 . Hauler 7 | . 2 . 5 . . Recycler 14 | . 1 . 7 6 . Mechanic 1 | . . . 1 . . Operator 1 | . . . 1 . . Watcher 6 | . 3 . 3 . . Swarmer 21 | . 3 . 7 11 . Grunt 28 | . 10 . 14 4 . Brawler 1 | . . . 1 . . Duelist 2 | . . . . 2 . Sentry 8 | . . . 8 . . Assembled 4 | . . . . 4 . Best Kill Streak 9 | . 4 . 9 6 . Combat Bots Only 6 | . 4 . 6 4 . Max Kills in Single Turn 4 | . 1 . 2 4 . Gunslinging . | . . . . . . Exploded 3 | . . . 1 3 . Melee . | . . . . . . Uniques/NPCs Destroyed . | . . . . . . Combat | -11 -10 -10 -9 -9 -7 -------- Run | Yrd Mat Min Mat Min Zio Hostile Shots Fired 347 | . 55 . 116 90 86 Missed 123 | . 19 . 44 30 30 Damage Taken 2267 | . 302 . 782 667 516 Core 463 | . 57 . 161 94 151 Absorbed by Shields . | . . . . . . Ignored by Resistances 687 | . 99 . 230 199 159 Regen/Repaired (Parts) 72 | . 53 . 19 . . Core Remaining (%) 88 | 100 . 77 . . . Volleys Fired 251 | . 57 . 123 57 14 Largest 2 | . 2 . 2 2 2 Hottest 65 | . 50 . 65 56 56 Shots Fired 469 | . 114 . 228 99 28 Gun 356 | . 111 . 129 89 27 Cannon 79 | . . . 79 . . Launcher 34 | . 3 . 20 10 1 Special . | . . . . . . Kinetic 435 | . 111 . 208 89 27 Thermal . | . . . . . . Explosive 34 | . 3 . 20 10 1 Electromagnetic . | . . . . . . Robot Hit Streak 31 | . 20 . 31 28 . Robot Miss Streak 3 | . 1 . 2 3 . Penetration Max . | . . . . . . Secondary Targets 2 | . . . . 2 . Max Gunslinging Chain 1 | . . . . 1 . Shots Hit Robots 316 | . 81 . 164 71 . Core Hits 175 | . 37 . 88 47 3 Critical Kills 1 | . 1 . . . . Critical Parts Destroyed 1 | . . . . 1 . Critical Strikes 6 | . 1 . 4 1 . Destroy 2 | . 1 . . 1 . Blast 4 | . . . 4 . . Melee Attacks . | . . . . . . Impact . | . . . . . . Slashing . | . . . . . . Piercing . | . . . . . . Sneak Attacks . | . . . . . . Combat Hostiles . | . . . . . . Follow-up Attacks . | . . . . . . Damage Inflicted 5703 | . 880 . 2944 1855 24 Guns 3131 | . 876 . 1210 1045 . Cannons 994 | . . . 994 . . Explosions 1574 | . . . 740 810 24 Melee . | . . . . . . Ramming 4 | . 4 . . . . Kinetic 4125 | . 876 . 2204 1045 . Thermal . | . . . . . . Explosive 1508 | . . . 674 810 24 Electromagnetic 66 | . . . 66 . . Impact . | . . . . . . Slashing . | . . . . . . Piercing . | . . . . . . Highest Corruption 1 | . 1 1 1 1 1 Average Corruption 1 | . 1 1 1 1 1 Corruption Purged . | . . . . . . Corruption Blocked . | . . . . . . Effects 24 | . 5 4 9 6 . Message Errors 5 | . 1 2 1 1 . Matter Fused 9 | . 1 1 4 3 . Heat Flow Errors 3 | . 1 1 . 1 . Energy Discharges 3 | . . . 2 1 . Data Loss (minor) 1 | . . . 1 . . Data Loss (major) 1 | . 1 . . . . Misfires 1 | . . . 1 . . Alerts 1 | . 1 . . . . Overload Shots . | . . . . . . Overflow Damage 22 | . . . 4 18 . Projectiles . | . . . . . . Explosions 22 | . . . 4 18 . Melee . | . . . . . . Knockbacks 10 | . . . 10 . . Impact . | . . . . . . Kinetic 9 | . . . 9 . . Secondary 1 | . . . 1 . . Self-Inflicted Damage 32 | . 2 . 27 3 . Shots 4 | . . . 3 1 . Rammed 1 | . 1 . . . . Targets Rammed 1 | . 1 . . . . Kicked . | . . . . . . Crushed . | . . . . . . Highest Temperature 176 | . 176 167 16 142 10 Average Temperature 20 | . 24 87 4 51 10 Received Heat Transfer 809 | . 198 . 327 204 80 Siege Activations . | . . . . . . Robots Corrupted . | . . . . . . Combat Hostiles . | . . . . . . Parts Fried . | . . . . . . Impact Corruptions . | . . . . . . Robots Melted . | . . . . . . Combat Hostiles . | . . . . . . Parts Melted . | . . . . . . Heat Transferred . | . . . . . . Parts Sabotaged . | . . . . . . Parts Stolen . | . . . . . . Parts Stripped . | . . . . . . Power Chain Reactions . | . . . . . . Alert | -11 -10 -10 -9 -9 -7 ------- Run | Yrd Mat Min Mat Min Zio Peak Influence 582 | . 270 2 582 537 . Initial 131 | . . 2 . 131 . Average 199 | . 70 1 285 344 . Maximum Alert Level 2 | . 1 . 2 2 . Low Security (%) 49 | 100 89 100 23 6 . Level 1 36 | . 10 . 58 55 . Level 2 14 | . . . 17 37 . Level 3 . | . . . . . . Level 4 . | . . . . . . Level 5 . | . . . . . . High Security . | . . . . . . Max Security . | . . . . . . Squads Dispatched 6 | . 2 . 4 . . Investigation 4 | . 2 . 2 . . Extermination . | . . . . . . Reinforcement 2 | . . . 2 . . Assault . | . . . . . . Garrison . | . . . . . . Intercept . | . . . . . . Searches Triggered . | . . . . . . Construction Impeded 1 | . . . 1 . . Haulers Reinforced . | . . . . . . Active Scanning Responses . | . . . . . . Cargo Convoy Interrupts . | . . . . . . Stealth | -11 -10 -10 -9 -9 -7 --------- Run | Yrd Mat Min Mat Min Zio Distress Signals 4 | . 1 . 3 . . Communications Jammed . | . . . . . . Distress Signals . | . . . . . . Times Spotted 113 | . 16 . 41 41 15 Peak Tracking Total 20 | . 4 . 8 20 14 Tactical Retreats 4 | . 1 . . 2 1 Traps | -11 -10 -10 -9 -9 -7 ------- Run | Yrd Mat Min Mat Min Zio Traps Triggered 4 | . 1 . 3 . . Indirectly . | . . . . . . Trap Hack Attempts . | . . . . . . Triggered . | . . . . . . Disarmed . | . . . . . . Reprogrammed 1 | . 1 . . . . Reused . | . . . . . . Traps Extracted . | . . . . . . Installed . | . . . . . . Triggered . | . . . . . . Machines | -11 -10 -10 -9 -9 -7 ---------- Run | Yrd Mat Min Mat Min Zio Machines Disabled 12 | . 1 . 10 1 . Max in Single Turn 2 | . 1 . 2 1 . Machines Repaired . | . . . . . . Machines Dismantled . | . . . . . . Machines Sabotaged . | . . . . . . Overloaded Fab Kills . | . . . . . . Hacking | -11 -10 -10 -9 -9 -7 --------- Run | Yrd Mat Min Mat Min Zio Machines Accessed 22 | . 10 . 11 1 . Terminals 16 | . 7 . 8 1 . Fabricators . | . . . . . . Repair Stations 2 | . 1 . 1 . . Recycling Units 3 | . 2 . 1 . . Scanalyzers 1 | . . . 1 . . Garrison Access . | . . . . . . Total Hacks 71 | . 28 . 40 3 . Successful 45 | . 18 . 25 2 . Failed 26 | . 10 . 15 1 . Catastrophic 4 | . . . 4 . . Database Lockouts . | . . . . . . Manual 6 | . . . . . 6 Terminals 44 | . 16 . 25 3 . Fabricators . | . . . . . . Repair Stations 10 | . 7 . 3 . . Recycling Units 6 | . 5 . 1 . . Scanalyzers 11 | . . . 11 . . Garrison Access . | . . . . . . Terminal Hacks 24 | . 10 . 12 2 . Record 2 | . . . . 2 . Robot Analysis 1 | . . . 1 . . Prototype ID Bank 4 | . 1 . 3 . . Level Access Points 2 | . 1 . 1 . . Branch Access Points 1 | . 1 . . . . Emergency Access Points 4 | . 3 . 1 . . Terminal Index 1 | . 1 . . . . Alert Level 2 | . . . 2 . . Locate Traps 1 | . . . 1 . . Reprogram Traps 1 | . 1 . . . . Surveillance Status 1 | . . . 1 . . Recall Investigation 2 | . 1 . 1 . . Recall Reinforcements 1 | . . . 1 . . Zone Layout 1 | . 1 . . . . Fabricator Hacks . | . . . . . . Repair Station Hacks 8 | . 6 . 2 . . Scan Component 4 | . 3 . 1 . . Repair 4 | . 3 . 1 . . Recycling Unit Hacks 3 | . 2 . 1 . . Retrieve Components 3 | . 2 . 1 . . Scanalyzer 10 | . . . 10 . . Insert Component 5 | . . . 5 . . Analyze 5 | . . . 5 . . Garrison Access Hacks . | . . . . . . Unauthorized Hacks . | . . . . . . Terminals . | . . . . . . Fabricators . | . . . . . . Repair Stations . | . . . . . . Recycling Units . | . . . . . . Scanalyzers . | . . . . . . Garrison Access . | . . . . . . Data Cores Recovered . | . . . . . . Used . | . . . . . . Hacking Detections 17 | . 7 . 9 1 . Full Trace Events 3 | . 2 . 1 . . Feedback Events 1 | . 1 . . . . Corruption 1 | . 1 . . . . Feedback Blocked . | . . . . . . Robot Schematics Acquired 3 | . . . . . 3 Robots Built . | . . . . . . Authchips . | . . . . . . Time . | . . . . . . Total Robot Build Rating . | . . . . . . Part Schematics Acquired 20 | . . . 5 . 15 Parts Built . | . . . . . . Authchips . | . . . . . . Time . | . . . . . . Total Part Build Rating . | . . . . . . Parts Repaired 4 | . 3 . 1 . . Time 104 | . 78 . 26 . . Parts Recycled . | . . . . . . Recycled Matter . | . . . . . . Retrieved Matter . | . . . . . . Retrieved Components 23 | . 19 . 4 . . Parts Scanalyzed 5 | . . . 5 . . Part Schematics Acquired 5 | . . . 5 . . Parts Damaged . | . . . . . . Bothacking | -11 -10 -10 -9 -9 -7 ------------ Run | Yrd Mat Min Mat Min Zio Used RIF Installer . | . . . . . . Robots Hacked . | . . . . . . Non-combat . | . . . . . . Combat . | . . . . . . Robot Hacks Applied . | . . . . . . Relay Couplers Released . | . . . . . . Fabnet Peak Effective % . | . . . . . . Robots Rewired . | . . . . . . Allies Hacked . | . . . . . . Hacks Repelled . | . . . . . . Allies | -11 -10 -10 -9 -9 -7 -------- Run | Yrd Mat Min Mat Min Zio Total Allies 5 | . . . . 1 4 Largest Group 5 | . . . . 1 5 Highest-Rated Group 187 | . . . . 31 187 Highest-Rated Ally 41 | . . . . 31 41 Total Orders . | . . . . . . Ally Attacks 2 | . . . . . 2 Total Damage 43 | . . . . . 43 Kills . | . . . . . . Allies Corrupted . | . . . . . . Allies Melted 1 | . . . . . 1 Intel | -11 -10 -10 -9 -9 -7 ------- Run | Yrd Mat Min Mat Min Zio Robot Analysis Total 1 | . . . 1 . . Derelict Logs Recovered 4 | . . 2 . 2 . Drone Launches . | . . . . . . Drone Recoveries . | . . . . . . Exploration | -11 -10 -10 -9 -9 -7 ------------- Run | Yrd Mat Min Mat Min Zio Turns Passed 6421 | 68 1520 554 1893 1073 1313 Spaces Moved 5203 | 63 1316 523 1330 844 1127 Core 23 | 23 . . . . . Treads . | . . . . . . Legs . | . . . . . . Wheels 5180 | 40 1316 523 1330 844 1127 Hover . | . . . . . . Flight . | . . . . . . Fastest Speed 50 | 50 90 105 86 105 105 Average Speed 103 | 86 94 105 108 105 105 Slowest Speed 150 | 150 105 105 145 150 105 Overloaded Moves . | . . . . . . Propulsion Burnouts . | . . . . . . Robots Hopped . | . . . . . . Cave-ins Triggered . | . . . . . . Exploration Rate (%) 76 | 3 98 93 86 98 80 Regions Visited 5 Branch Regions 3 Pre-discovered Areas 1 | . . 1 . . . Known Exits Taken 2 | . 1 1 . . . Unknown Exits Taken 3 | 1 . . 1 1 . Scrap Searched 6 | . . 1 . 3 2 Spaces Dug 12 | . 12 . . . . Terrain Destroyed 173 | . 19 . 68 83 3 Melee . | . . . . . . Projectile . | . . . . . . AOE 173 | . 19 . 68 83 3 Terrain Rammed . | . . . . . . Walls Destroyed . | . . . . . . Machines Disabled . | . . . . . . Actions | -11 -10 -10 -9 -9 -7 --------- Run | Yrd Mat Min Mat Min Zio Total 5800 | 76 1489 528 1555 923 1229 Wait 204 | . 75 . 45 . 84 Move 5198 | 62 1315 522 1329 843 1127 Hop . | . . . . . . Pick Up 73 | 8 25 2 31 6 1 Fast Attach 6 | . 2 . 2 2 . Attach 28 | 6 6 1 10 4 1 Detach 1 | . . . . 1 . Swap 21 | . 3 1 8 8 1 Drop 17 | . 5 2 7 2 1 Fire 251 | . 57 . 123 57 14 Melee . | . . . . . . Ram 1 | . 1 . . . . Kick . | . . . . . . Crush . | . . . . . . Escape Stasis . | . . . . . . Rewire . | . . . . . . Trap . | . . . . . . Miscellaneous . | . . . . . . Route ------- -11/Scrapyard -10/Materials (discovered 5 exits: *Mat x3 / *Min x2) -10/Mines (discovered 2 exits: *Mat x2) -9/Materials (discovered 5 exits: *Mat x3 / *Min x2) -9/Mines (discovered 4 exits: *Mat x2 / [*Exi] / *Zio) -7/Zion History --------- Turn | Location | Event 13 | -11/Scrapyard | Discovered new exit (range 15) 69 | -11/Scrapyard | Entered Materials 313 | -10/Materials | Build established: Mutant 441 | -10/Materials | Identified exit to Mines 468 | -10/Materials | Discovered new exit (range 8) 488 | -10/Materials | Identified exit to Materials 633 | -10/Materials | Repaired Ion Engine 662 | -10/Materials | Repaired Com. Wheel 694 | -10/Materials | Repaired Com. Wheel 1589 | -10/Materials | Entered Mines 1635 | -10/Mines | Met a Derelict bent on vengeance 1636 | -10/Mines | Found a hidden stash of uninstalled traps 1789 | -10/Mines | Discovered exit to Materials (range 15) 1892 | -10/Mines | A weapon hastily lodged in a ceiling crevice suddenly fell to the ground 1955 | -10/Mines | Discovered exit to Materials (range 6) 2143 | -10/Mines | Entered Materials 2143 | -9/Materials | Evolved 2 slots: Propulsion x1, Utility x1 2496 | -9/Materials | Discovered new exit (range 9) 2672 | -9/Materials | Repaired Wheel 2707 | -9/Materials | Discovered new exit (range 14) 2822 | -9/Materials | Discovered new exit (range 10) 3214 | -9/Materials | Build established: Scavenger-Mutant 3242 | -9/Materials | Discovered new exit (range 13) 3670 | -9/Materials | Discovered new exit (range 14) 3759 | -9/Materials | Build established: Mutant 3973 | -9/Materials | Identified exit to Materials 4036 | -9/Materials | Entered Mines 4136 | -9/Mines | YI-UF0 nonchalantly dropped a Grenade Launcher on the ground 4166 | -9/Mines | Learned location of 1 exit from Materials 4183 | -9/Mines | Received a Rocket Launcher from a helpful Derelict 4229 | -9/Mines | Discovered exit to Materials (range 7) 4304 | -9/Mines | Assembled infested the area 4307 | -9/Mines | Learned Materials terminal intel 4317 | -9/Mines | Core integrity fell below 50% 4379 | -9/Mines | Lost 3 parts (1p2n) 4633 | -9/Mines | Discovered exit to Materials (range 6) 4634 | -9/Mines | Escorted by a lone wolf Derelict 4758 | -9/Mines | A Derelict revealed a hidden shortcut to a safe place 5064 | -9/Mines | Deemed a non-threat by the Exiles lab entrance 5064 | -9/Mines | Discovered new exit (range 5) 5109 | -9/Mines | Entered Zion 5109 | -7/Zion | Accompanied by 1 ally 5153 | -7/Zion | System corruption cleaned by Quarantine Array 5165 | -7/Zion | Learned Factory garrison access intel 5431 | -7/Zion | Imprinted 5433 | -7/Zion | Declared Zion's savior 5945 | -7/Zion | Received a hallucinogenic algorithm 6368 | -7/Zion | Attacked by Zionites 6383 | -7/Zion | Core integrity fell below 20% 6422 | -7/Zion | Destroyed by PO-SC4(z) with Makeshift Axe Last Messages --------------- LE-LMI(z) pulls a Mak. Axe out of the Twisted Machinery. M9-B0N(z) pulls a Mak. Shrapnel Gun out of the Twisted Machinery. Tractor Beam destroyed. Hvy. Assault Rifle destroyed. Chain reaction triggered in Angular Momentum Engine. 05-3LG(z) pulls a Mak. Sword out of the Twisted Machinery. 7Q-R93(z) pulls a Mak. Shrapnel Gun out of the Twisted Machinery. Arm. Wheel destroyed. RN-1E3(z) bursts out of the Twisted Machinery. RN-1E3(z) pulls a Mak. Axe out of the Twisted Machinery. PO-SC4(z) pulls a Mak. Axe out of the Twisted Machinery. OD-XDA(z) pulls a Mak. Spear out of the Twisted Machinery. Map ----- +----------------------------------------------------+ | ????????????????????????????????????????# #???? | | ???????????????????????????????####??????* #???? | | ?????###???????????????????????#X ##?????# #???? | | ######"#####???????????????????# ####### #???? | | """""""#"""####???????????????## ##"#"#" ##??? | | """"""""""""#"###?????????????# """""" #### | | " "" """#""#####????????##""## """ " " | | """"""##"####????"#"""" " | | """"""""####?#"" "" | | """ """"""###"" | | ## "" "" """"""##""" " | | # """" "" """ ""####"" | | """ "" ""#?#""" | | " "" ""#####"" """ | | "" "" "" """##""" "#"" | | # "" "" """ """##""" """"" | | ## """ """ """####"" ""##" | | """"" """" c"""##?##"" ""##" | | """#"" """" ""##??#"#" "###"" """"" | | ""#"##"" """" """#####"" ""#"#" """"" | | """"""#####"" "#"" """#"##""" ""#""" """"" | | """"##"#""""""" """" """"""""" """""" """ | | """"""""""""""""""""" z """" | | z " " | | z """"" | | zzz zz @z "" | | """#"# ""#""""#""""""" ""#""#"#"# """ "" | | """""""""""""""""""""" """"""""" """" "" | | """"""#"#""""#"""#"""" """#"##""" """" """" | | ""#########""#"""#""" """######"" """" | | ""#???????##########" ""##???##"" " """ | | """"??????????????#"" "##????#""" " ] """ | | """"??????????????#""""""#?????##"" =%[""" | | ""??????????????##"#"""#??????##" % | | ""???????????????#######??????#"" =! | | "#????????????????????????????##" """" "" | | "#????????????????????????????##" #"""" """ | | ""???????????????????????????##"" """"" """ | | ""???????????????????????????#""" """" | | ""???????????????????????????##"" "" " | | "???????????????????????????##""" | | "???????????????????????????#"" " | | ????????????????????????????##" | | ????????????????????????????#"" """ | | ????????????????????????????#"""" "$" | | ???????????????????????????????###"" " """ | | ?????????????????????????????????#"" """ | | ?????????????????????????????????#"" #"" """ | | ?????????????????????????????????#"" """ | | ?????????????????????????????????##" "" | +----------------------------------------------------+ Best States ------------- Heat Dissipation 42 Energy Generation 12 Energy Capacity 265 Matter Stores 500 Matter Capacity 500 Sight Range 16 Terrain Scan Density 10 Resistance: KI 20 Resistance: TH 20 Resistance: EX 20 Resistance: EM 20 Resistance: I 20 Resistance: S 20 Resistance: P 20 Evasion (%) 42 Offensive Hacking 10 Item Schematics ----------------- Arm. Wheel | -9/Materials | Scanalyzed Ion Engine | -9/Materials | Scanalyzed Com. Wheel | -9/Materials | Scanalyzed Assault Rifle | -9/Materials | Scanalyzed Disposable Heat Sink | -9/Materials | Scanalyzed Matter Filter | -7/Zion | Archive Angular Momentum Engine | -7/Zion | Archive Plasma Flamer | -7/Zion | Archive Mak. Flight Unit | -7/Zion | Archive Mak. Hover Unit | -7/Zion | Archive Gravmag System | -7/Zion | Archive Imp. Arc Projector | -7/Zion | Archive Imp. Proton Missile Launcher | -7/Zion | Archive Mak. Light Armor Plating | -7/Zion | Archive System Restoration Module | -7/Zion | Archive Hvy. Flak Cannon | -7/Zion | Archive Slug Cannon | -7/Zion | Archive Fusion Compressor | -7/Zion | Archive Imp. Shield Generator | -7/Zion | Archive Imp. Shock Absorption System | -7/Zion | Archive Robot Schematics ------------------ K-01 Serf | -7/Zion | Archive M-14 Sweeper | -7/Zion | Archive L-41 Fighter | -7/Zion | Archive Fabricated ------------ Nothing Alien Tech Used ----------------- None Achievements -------------- Hey, That's Mine! Hunted I Survived The Infestation Robot Respite The More The Merrier The One Tourist Use The Force Challenges ------------ None Game ------ Seed TimingGravityRifle Manual? 0 Play Time 01:19:50 Cumulative 9.3 hours Start 2024.05.15 @ 23:07:10 End 2024.05.16 @ 01:54:00 Sessions 1 Manual Loads 0 Difficulty Adventurer Special Mode None Game No. 4 Rogue 0 Adventurer 4 Explorer 0 Win Type - Total 0 Types 0/0/0/0/0/0/0/0/0 Lore% 5 Gallery% 11 Achievement% 14 Wizard Run 0 Options --------- Layout 1 ASCII 0 Keyboard 0 Movement Mouse Keybinds 0 Fullscreen 1 Font 24/Smallcaps Map View 50x35 Zoom Use 0% Tactical HUD 0 Map Filters NONE Filters NONE Steam 1 RUN: 562d65f8-7094-4cf3-8f8f-b71c6c44721b